{"text_format":"1","workbook":"xlsx","n_sheets":3,"sheets":["Лист1","Лист2","Лист3"],"not_rendered":{"charts":0,"images":0,"macros":0,"external_links":0,"defined_names":1,"comments":0,"pivot_tables":0},"unopened":[],"bounds":{"document_bytes":16777216,"sheet_cells":100000,"rows_first":2000,"rows_last":500,"rows_between":2000,"halvings":0,"cell_chars":16384,"cell_head_chars":4096},"cells_cut":0,"cells_raw":0,"read":"whole","date_system":"1900"}

{"sheet":"Лист1","index":0,"n_rows":7,"n_cols":12,"rows_kept":7,"cut":false,"hidden":false,"merged":[[7,5,7,6],[4,7,4,10],[4,12,5,12],[4,2,5,2],[6,5,6,6],[1,2,1,9],[4,1,5,1],[4,4,5,4],[4,3,5,3],[4,5,5,6]]}
[null,null,null,null,null,"ОТЧЕТ"]
[null,null,"  о реализации проектов в рамках программы приграничного сотрудничества Европейского инструмента соседства и партнерства (ПГС) \"Эстония - Латвия - Россия\""]
[]
[]
[null,"Код по бюджетной классификации бюджета, предоставляющего межбюджетный трансферт","Код по классификации доходов бюджета, получающего межбюджетный трансферт","Утверждено бюджетных назначений на 2012 год","Неиспользованный остаток межбюджетного трансферта, подлежащий возврату","Расходы, подтвержденные документами",null,"Принятые бюджетные обязательства",null,null,null,"Примечания "]
[null,null,null,null,null,null,null,"контрагент","номер и дата договора","сумма договора","выполнено работ (сумма)","(перечень основных видов выполненных работ, причины возникновения остатка)"]
[null,1,5,2,3,4,null,6,7,8,9,10]

{"sheet":"Лист2","index":1,"n_rows":23,"n_cols":19,"rows_kept":23,"cut":false,"hidden":false,"merged":[[0,1,0,6],[3,2,3,17],[0,13,0,17],[6,4,7,4],[6,10,7,11],[6,8,7,8],[6,6,7,6],[6,9,7,9],[6,2,7,2],[6,3,7,3],[6,1,7,1],[6,5,7,5],[2,8,2,9],[6,7,7,7],[20,3,20,8],[20,1,20,2],[19,13,19,14],[19,15,19,16],[6,12,6,18],[17,1,17,12],[17,13,17,16],[18,13,18,14],[18,15,18,16],[8,10,8,11]]}
[null,null,null,null,null,null,null,null,null,null,null,null,null,"УТВЕРЖДЕН\nраспоряжением комитета по местному самоуправлению,\nмежнациональным и межконфессиональным отношениям Ленинградской области\nот июня 2015 года N \n(приложение 6)\n"]
[]
[null,null,null,null,null,null,null,null,"ОТЧЕТ"]
[null,null,"     об использовании субсидии, предоставленной из областного бюджета Ленинградской области Фалилеевскому сельскому поселению Кингисеппского муниципального района на реализацию проектов местных инициатив граждан в рамках подпрограммы «Создание условий для эффективного выполнения органами местного самоуправления своих полномочий» государственной программы Ленинградской области «Устойчивое общественное развитие в Ленинградской области»  за   2017 год"]
[]
[]
[null,"Код по бюджетной классификации бюджета, предостав-ляющего межбюджетный трансферт","Код по классификации доходов бюджета, получающего межбюджетный трансферт","Утверждено бюджетных назначений на 2017 год (областной и местный бюджет)","Поступило средств областного бюджета","Размер софинансирования из местного бюджета","Расходы, подтвержденные документами и произведенные за счет средств областного бюджета","Расходы, подтвержденные документами и произведенные за счет средств местного бюджета","Неиспользо-ванный остаток межбюджетного трансферта, подлежащий возврату","Наименование мероприятия",null,null,"Принятые бюджетные обязательства"]
[null,null,null,null,null,null,null,null,null,null,null,null,"контрагент","номер и дата договора","наименование работ","сумма договора","выполнено работ (сумма)","номер, дата акта выпол-ненных работ","Фактические показатели результативности использования субсидии"]
[null,"990 1403 6630370880 521 251","912 20229999100000 151",{"$f":"E9+F9","v":757365.3},200000,557365.30000000005,200000,557365.30000000005,0,"Ремонт участка автомобильной дороги в деревне Домашово  от дома № 34 до дома №26  ",null,null,"Общество с ограниченной ответственностью  «Леонет»","Муниципальный контракт № 0145300006017000003-0265091-01 от 17.05.2017г","Ремонт участка автомобильной дороги в деревне Домашово  от дома № 34 до дома №26  ",{"$f":"G9+H9","v":757365.3},{"$f":"P9","v":757365.3},"Акт №1 от 23.05.2017г","490 м."]
[null,"990 1403 6630370880 521 251","912 20229999100000 151",{"$f":"E10+F10","v":141069},100000,41069,99000,40658.31,1000,"Ремонт участка автомобильной дороги в деревне Унатицы  от дома № 28 до дома № 34 ",null,null,"Общество с ограниченной ответственностью \"СоюзАрктикСтрой\"","Муниципальный контракт № 0145300006017000008-0265091-01 от 23.06.2017г.","Ремонт участка автомобильной дороги в деревне Унатицы  от дома № 28 до дома № 34 ",{"$f":"G10+H10","v":139658.31},{"$f":"P10","v":139658.31},"Акт. №3 от 25.07.2017г.","200 м."]
[null,"990 1403 6630370880 521 251","912 20229999100000 151",113078.22,100000,13078.22,99000,12947.44,1000,"Ремонт участка автомобильной дороги в деревне Лоузно  от дома № 13 до дома № 40 ",null,null,"Общество с ограниченной ответственностью \"СоюзАрктикСтрой\"","Муниципальный контракт № 0145300006017000008-0265091-01 от 23.06.2017г.","Ремонт участка автомобильной дороги в деревне Лоузно  от дома № 13 до дома № 40 ",111947.44,111947.44,"Акт №1 от 25.07.2017г","160 м."]
[null,"990 1403 6630370880 521 251","912 20229999100000 151",72527.520000000004,66000,6527.52,66000,6527.52,0,"Ремонт участка автомобильной дороги в деревне Ратчино  от региональной дороги до дома № 35 ",null,null,"Общество с ограниченной ответственностью «Современные Газовые Системы»","муниципальный контракт № 1Р от 02.05.2017г.","Ремонт участка автомобильной дороги в деревне Ратчино  от региональной дороги до дома № 35 ",72527.520000000004,72527.520000000004,"Акт №1 от 31.07.2017г.","100 м."]
[null,"990 1403 6630370880 521 251","912 20229999100000 151",573318.34000000008,134000,439318.34,131990,432728.57,2010,"Ремонт участка автомобильной дороги в деревне Кайболово  от дома № 30 до дома № 34 ",null,null,"Общество с ограниченной ответственностью «Современные Газовые Системы»","Муниципальный контракт №0145300006017000006-0265091-01 от 22.05.2017г","Ремонт участка автомобильной дороги в деревне Кайболово  от дома № 30 до дома № 34 ",564718.57000000007,564718.57000000007,"Акт №1 от 23.05.2017г.","75 м."]
[null,"990 1403 6630370880 521 251","912 20229999100000 151",139919.67999999999,100000,39919.68,99000,39520.49,1000,"Ремонт участка автомобильной дороги в деревне Систа  от дома № 22 до дома № 4  ",null,null,"Общество с ограниченной ответственностью \"СоюзАрктикСтрой\"","Муниципальный контракт № 0145300006017000008-0265091-01 от 23.06.2017г.","Ремонт участка автомобильной дороги в деревне Систа  от дома № 22 до дома № 4  ",138520.49,138520.49,"Акт №2 от 25.07.2017г.","200 м."]
[null,"990 1403 6630370880 521 251","912 20229999100000 151",10800,10000,800,10000,800,0,"Приобретение, доставка и установка информационного стенда в деревне Горка у д. №30",null,null," г-ка Дракунова О.Н","Договор купли-продажи от 19.06.2017г. №19/06/2017 ","Приобретение, доставка и установка информационного стенда в деревне Горка у д. №30",10800,10800,"Акт приема-передачи №БН от 03.07.2017г.","1 шт."]
[null,"990 1403 6630370880 521 251","912 20229999100000 151",33900,32200,1700,32200,1700,null,"Благоустройство территории в д. Горка (уборка мусора, распил деревьев) за домами №15, №17",null,null," г-ка Дракунова О.Н","Договора возмездного оказания услуг  №38 от 09.06.2017г","Благоустройство территории в д. Горка (уборка мусора, распил деревьев) за домами №15, №17",33900,33900,"Акт №БН от 19.06.2017г","30 куб. м."]
[null,"ИТОГО","Х",{"$f":"SUM(D9:D16)","v":1841978.06},742200,1099778.06,737190,1092247.6300000001,5010,"Х",null,null,"Х","Х","Х",{"$f":"SUM(P9:P16)","v":1829437.6300000001},{"$f":"SUM(Q9:Q16)","v":1829437.6300000001},"Х","Х"]
[null,"И.О. Главы администрации поселения \nЛенинградской области                       __________       О.А. Кивилева____\n                                                                   (подпись)          (фамилия, инициалы)\nРуководитель финансового органа    ___________   Н.С.Корнеева______\n                                                                    (подпись)       (фамилия, инициалы)\n",null,null,null,null,null,null,null,null,null,null,null,"Согласовано:                                                           Председатель     комитета  по местному самоуправлению, межнациональным и межконфессиональным отношениям Ленинградской области                                                                                                                                                                                                                                                                                                                                                                                                                                                                                                                                                                                                                         "]
[null,null,null,null,null,null,null,null,null,null,null,null,null,"_____________",null,"Бурак Л.В."]
[null,null,null,null,null,null,null,null,null,null,null,null,null,"(подпись)                           "]
[null,"Исполнитель                    __________________   _________________________",null,"Никитина А.А. т.8(81375)66466"]
[null,"                                                (фамилия, инициалы)   (номер телефона)"]
[null,"15 декабря_ 2017 года"]

{"sheet":"Лист3","index":2,"n_rows":0,"n_cols":0,"rows_kept":0,"cut":false,"hidden":false,"merged":[]}